[Event "Nakhchivan Open 2024"]
[Site "Nakhchivan"]
[Date "2024.01.14"]
[Round "7.3"]
[White "Seyidli, Mirsaleh"]
[Black "Kul, Ozdemir Efe"]
[Result "1/2-1/2"]
[ECO "A01"]
[WhiteElo "1775"]
[BlackElo "2223"]
[Annotator "TA"]
[PlyCount "74"]
[EventDate "2024.01.11"]
[EventType "swiss"]
[EventCountry "AZE"]
[SourceTitle "playchess.com"]
[Source "ChessBase"]
[SourceQuality "1"]
[TimeControl "5400+30"]

{[%evp 23,74,70,91,86,104,96,96,66,87,48,64,52,66,52,43,52,84,40,40,36,49,52,140,137,268,297,292,283,545,447,406,309,318,314,304,304,295,335,1628,1470,29984,29985,29994,29995,29996,577,441,329,334,329,283,282,303]} 1. b3 {[%emt 0:00:14]} d6 {[%emt 0:01:26]} 2. Bb2 {[%emt 0:00:45]} Nf6 {[%emt 0:02:05]} 3. d4 {[%emt 0:01:20]} g6 {[%emt 0:00:21]} 4. g3 {[%emt 0:00:24]} Bg7 {[%emt 0:00:06]} 5. Bg2 {[%emt 0:00:03]} O-O {[%emt 0:00:12]} 6. Nf3 {[%emt 0:00:18]} Nc6 {[%emt 0:00:30]} 7. O-O {[%emt 0:01:25]} e5 {[%emt 0:00:16]} 8. dxe5 {[%emt 0:01:13]} Ng4 {[%emt 0:00:11]} 9. c4 {[%emt 0:00:26]} Ngxe5 {[%emt 0:00:12]} 10. Nxe5 {[%emt 0:00:16]} Nxe5 {[%emt 0:02:26]} 11. Nc3 {[%emt 0:00:09]} Be6 {[%emt 0:03:09]} 12. Qd2 {[%emt 0:03:47]} Rb8 {[%emt 0:03:35]} 13. f4 {[%emt 0:05:25]} Nd7 {[%emt 0:02:07]} 14. e4 {[%emt 0:00:19]} f5 {[%emt 0:04:06]} 15. exf5 {[%emt 0:06:25] White is better.} Bxf5 {[%emt 0:00:35]} 16. h3 {[%emt 0:03:25]} h5 {[%emt 0:08:45]} 17. Bd5+ {[%emt 0:04:08]} Kh8 {[%emt 0:07:32] [#]} 18. g4 $1 {[%emt 0:00:52]} hxg4 {[%emt 0:02:30]} 19. hxg4 {[%emt 0:01:44]} Bxg4 {[%emt 0:00:46][%cal Bf5g4,Bg4h5,Bh5g6][%mdl 32]} 20. Ne4 {[%emt 0:02:17] And now Qh2+ would win.} Bxb2 {[%emt 0:06:01]} 21. Qxb2+ {[%emt 0:00:07]} Nf6 {[%emt 0:00:11]} 22. Ng5 $1 $36 {[%emt 0:01:07][%cal Of4f5][%mdl 3072] f5! would now be deadly. White has compensation. White has some pressure.} c6 {[%emt 0:01:54] White leaves nothing to chance now.} (22... Qe7 $14) 23. Be6 {[%emt 0:01:20] White is much more active.} Qb6+ {[%emt 0:05:08]} (23... Bxe6 $16 24. Nxe6 Qd7 25. Nxf8 Rxf8) 24. Kg2 $18 {[%emt 0:00:46]} Bh5 {[%emt 0:00:07]} (24... Bxe6 $6 25. Nxe6 Qa5 26. c5 $18) 25. Rae1 {[%emt 0:04:34] Black must now prevent Bf7.} d5 $2 {[%emt 0:20:32]} (25... Qc7 26. Bh3 d5) 26. Qe5 {[%emt 0:01:59]} (26. cxd5 cxd5 27. Bxd5 Rbe8 $18) 26... Rbe8 {[%emt 0:04:42]} 27. f5 {[%emt 0:05:26] Hoping for fxg6.} Kg7 {[%emt 0:03:08][%cal Bh8g7,Bg7g6,Bg6g5][%mdl 32]} 28. fxg6 {[%emt 0:04:18]} (28. cxd5 cxd5 29. fxg6 Bxg6 $16) 28... Bxg6 {[%emt 0:01:10]} 29. cxd5 {[%emt 0:04:33] Strongly threatening Nh3.} cxd5 {[%emt 0:02:24]} 30. Rc1 {[%emt 0:00:49]} Re7 {[%emt 0:07:46] Dodges Rc7} (30... Be4+ 31. Nxe4 Rxe6 32. Qg5+ (32. Rc7+ Rf7 $18) 32... Kf7 33. Nxf6 (33. Qxd5 Ke7 $11) 33... Rxf6 34. Rc7+ (34. Qxd5+ Kg7 $11) 34... Ke8 35. Rc8+ Kd7 36. Rxf8 $18) (30... Qd8 31. Rc7+ Re7) 31. Rc8 {[%emt 0:01:09] Intending Rxf8 and mate.} Be8 {[%emt 0:04:27]} 32. Rh1 {[%emt 0:00:26]} Kg6 {[%emt 0:03:24]} 33. Bf5+ {[%emt 0:21:01]} Kxg5 {[%emt 0:01:07]} 34. Qxe7 {[%emt 0:00:03]} (34. Be6+ $142 Kg6 35. Qf5+ (35. Qg3+ Ng4 36. Qxg4+ Kf6 37. Qf5+ Kg7 38. Rh7#) 35... Kg7 36. Qg5+ Bg6 37. Qh6#) 34... Qd4 {[%emt 0:03:51][%cal Og5f5]} 35. Qxf8 {[%emt 0:03:09] White wants to mate with Rf1.} Qd2+ {[%emt 0:00:08] White has a decisive advantage.} 36. Kf3 {[%emt 0:00:51] White threatens Qh6+ and mate.} Qf4+ {[%emt 0:00:29] [#]} 37. Ke2 $1 {[%emt 0:00:09]} Bb5+ {[%emt 0:00:14][%mdl 32768] Weighted Error Value: White=0.36/Black=0.46.  Mistake:       	---       	Black=4      Inaccurate:     	White=3     	Black=2      OK:         	White=6     	Black=7      Best:        	White=3     	Black=5      Strong:       	White=2     	---       . An unexpected result.} 1/2-1/2

[Event "Nakhchivan Open 2024"]
[Site "Nakhchivan"]
[Date "2024.01.14"]
[Round "7.4"]
[White "Mamedjarova, Zeinab"]
[Black "Israilov, Agil"]
[Result "0-1"]
[ECO "A49"]
[WhiteElo "2173"]
[BlackElo "2114"]
[Annotator "TA"]
[PlyCount "98"]
[EventDate "2024.01.11"]
[EventType "swiss"]
[EventCountry "AZE"]
[SourceTitle "playchess.com"]
[Source "ChessBase"]
[SourceQuality "1"]
[TimeControl "5400+30"]

{[%evp 15,98,14,11,-17,-4,5,2,-15,-17,-91,-97,-108,-93,-107,-29,-42,-42,-35,25,-57,-66,-70,-86,-121,-106,-95,-69,-129,-26,-45,-50,-80,-83,-115,-112,-112,-105,-87,-101,-93,-98,-104,-111,-152,-80,-176,-150,-157,-151,-295,-297,-315,-167,-218,-211,-230,-177,-177,-166,-166,-85,-65,-71,-110,-96,-121,-94,-95,-86,-95,-92,-182,-177,-381,-383,-566,-579,-572,-572,-557,-550,-1010,-995,-5608,-5652]} 1. d4 {[%emt 0:00:02]} Nf6 {[%emt 0:01:17]} 2. Nf3 {[%emt 0:00:14]} g6 {[%emt 0:00:07]} 3. g3 {[%emt 0:00:32]} Bg7 {[%emt 0:00:05]} 4. Bg2 {[%emt 0:00:06]} O-O {[%emt 0:00:07]} 5. O-O {[%emt 0:00:04]} d6 {[%emt 0:00:04]} 6. Re1 {[%emt 0:00:53]} Nbd7 {[%emt 0:00:10]} 7. e4 {[%emt 0:00:22]} e5 {[%emt 0:00:05]} 8. c3 {[%emt 0:00:07]} Re8 {[%emt 0:00:08]} 9. h3 {[%emt 0:01:45]} b6 {[%emt 0:02:35]} 10. a4 {[%emt 0:20:11]} a5 {[%emt 0:00:33]} 11. Qc2 {[%emt 0:00:23] The position is equal.} Bb7 {[%emt 0:01:37]} 12. Na3 {[%emt 0:10:29]} (12. d5 $11 {remains equal.}) 12... exd4 $17 {[%emt 0:02:10]} 13. Nxd4 {[%emt 0:00:38]} Nc5 {[%emt 0:00:07]} 14. f3 {[%emt 0:01:52]} Nh5 {[%emt 0:04:37]} (14... d5 $1 $17 {[%cal Rd5e4]} 15. e5 Nfd7 (15... Nh5 16. g4 $15)) 15. g4 $1 $11 {[%emt 0:01:01]} Nf6 {[%emt 0:00:17]} 16. Bg5 {[%emt 0:01:27]} Qc8 {[%emt 0:01:24]} ({Black should play} 16... h5 $1 $15) 17. Bf1 {[%emt 0:03:15]} (17. Nab5 $11) 17... d5 $1 $15 {[%emt 0:02:50]} 18. exd5 {[%emt 0:07:09]} Nxd5 {[%emt 0:00:28]} 19. Bb5 {[%emt 0:01:27] Repels Qd7} c6 {[%emt 0:00:49]} 20. Bc4 {[%emt 0:05:13]} Qc7 {[%emt 0:01:47]} 21. Qf2 {[%emt 0:09:06] Inhibits Qg3+.} (21. Rxe8+ $15 Rxe8 22. Bxd5 cxd5 23. Qf2) 21... Bxd4 {[%emt 0:09:31]} ({Black should try} 21... Be5 $17 {White must now prevent ...Nf4.} 22. Nac2 Ba6 23. Bxa6 Rxa6) 22. cxd4 {[%emt 0:00:48]} Ne6 {[%emt 0:00:13]} 23. Bh4 {[%emt 0:06:24]} Ndf4 $1 {[%emt 0:02:37]} 24. Bf1 {[%emt 0:02:20]} Ba6 {[%emt 0:01:17] Black is more active.} 25. Bf6 {[%emt 0:01:15]} Bxf1 {[%emt 0:02:12]} 26. Qxf1 {[%emt 0:01:26]} Nd5 {[%emt 0:20:54] Excellent horsemanship.} 27. Be5 {[%emt 0:00:21]} Qe7 $36 {[%emt 0:00:10][%mdl 2048] White is under strong pressure.} 28. Nc4 {[%emt 0:04:29] [#]} Rad8 $1 {[%emt 0:00:23]} 29. Re4 {[%emt 0:03:14]} Qb4 {[%emt 0:04:16]} ({Better is} 29... Ng5 {[%cal Of7f6]} 30. Ree1 Qb4) 30. Kh1 {[%emt 0:03:12]} (30. h4 $17 {was called for.}) 30... f6 {[%emt 0:06:52]} 31. Bg3 {[%emt 0:00:32]} Ng5 {[%emt 0:00:33]} 32. Qd3 {[%emt 0:09:01]} (32. Rxe8+ $17 Rxe8 33. Rc1) 32... Nxe4 $19 {[%emt 0:02:39]} (32... Nxh3 33. Qc2 $17) 33. fxe4 {[%emt 0:00:06] [#]} Ne3 {[%emt 0:05:27]} (33... b5 $142 $1 {[%cal Rb5c4][%mdl 512]} 34. axb5 (34. Nd6 Rxd6) 34... cxb5) 34. Nd6 {[%emt 0:03:01]} (34. Nxe3 $142 Rxd4 (34... Qxb2 $2 35. Rd1 $18) 35. Qc2 Rdxe4 (35... Rexe4 36. Be1 $17) 36. Be1) 34... Qxb2 {[%emt 0:02:36]} (34... Rxd6 35. Bxd6 Qxb2 (35... Qxd6 36. Qxe3 c5 37. Rd1 $15) 36. Rg1 $17) 35. Rg1 {[%emt 0:00:09] [#] Inhibits Qg2+.} Rxd6 {[%emt 0:00:06]} 36. Bxd6 {[%emt 0:00:11]} Qf2 {[%emt 0:00:22]} 37. Rg3 {[%emt 0:03:41] Prevents Qf3+.} Qf1+ {[%emt 0:05:48]} (37... Re6 $19 {Strongly threatening ...Nxg4.} 38. Bf4 Nd5 (38... Qxf4 39. Rxe3 Kg7 40. Kg2 $17)) 38. Qxf1 $17 {[%emt 0:00:07]} Nxf1 {[%emt 0:00:03][%mdl 4096] Endgame. KRB-KRN} 39. Rd3 {[%emt 0:01:40]} Rxe4 {[%emt 0:00:28]} 40. Bc7 {[%emt 0:00:53]} Ne3 {[%emt 0:01:05]} 41. Bxb6 {[%emt 0:00:10]} Nc4 {[%emt 0:00:05]} 42. Bd8 {[%emt 0:00:58]} Kf7 {[%emt 0:03:34]} 43. d5 {[%emt 0:00:54]} (43. Rb3 $17) 43... Ne5 $19 {[%emt 0:00:51][%csl LRa4,LRd3]} 44. Ra3 {[%emt 0:00:50]} (44. Rd1 {keeps fighting.}) 44... cxd5 {[%emt 0:00:13]} 45. Rc3 {[%emt 0:00:16]} (45. Kg2 {was necessary.}) 45... Rxa4 {[%emt 0:00:51] Black is clearly winning.} 46. Rc7+ {[%emt 0:00:05]} Ke6 {[%emt 0:00:05] aiming for ...d4.} 47. Re7+ {[%emt 0:00:22]} Kd6 {[%emt 0:00:06]} 48. Rxh7 {[%emt 0:00:10]} d4 {[%emt 0:00:25] ...d3 is the strong threat.} 49. Bxf6 {[%emt 0:00:17]} d3 {[%emt 0:00:21] Weighted Error Value: White=0.67/Black=0.21 (precise) .  Mistake:       	White=9     	Black=6      Inaccurate:     	White=7     	---        OK:         	White=9     	Black=7      Best:        	White=3     	Black=11     Strong:       	White=1     	Black=3} 0-1

[Event "Nakhchivan Open 2024"]
[Site "Nakhchivan"]
[Date "2024.01.14"]
[Round "7.5"]
[White "Baghirov, Mahammad"]
[Black "Gulumov, Muthat"]
[Result "1/2-1/2"]
[ECO "D00"]
[WhiteElo "1621"]
[BlackElo "1843"]
[Annotator "NA RC COMBH"]
[PlyCount "50"]
[EventDate "2024.01.11"]
[EventType "swiss"]
[EventCountry "AZE"]
[SourceTitle "playchess.com"]
[Source "ChessBase"]
[SourceQuality "1"]
[TimeControl "5400+30"]

1. d4 {[%emt 0:00:40]} d5 {[%emt 0:00:05]} 2. Bf4 {[%emt 0:00:30]} c5 {[%emt 0:00:05]} 3. e3 {[%emt 0:00:08]} Nc6 {[%emt 0:00:04]} 4. Nf3 {[%emt 0:00:05]} Nf6 {[%emt 0:00:06]} 5. Nc3 {[%emt 0:00:08]} Bg4 {[%emt 0:00:46]} 6. dxc5 {[%emt 0:01:13]} Rc8 {[%emt 0:07:00]} 7. Be2 {[%emt 0:01:41]} e6 {[%emt 0:00:20]} 8. Ne5 {[%emt 0:01:29]} Bxe2 {[%emt 0:00:18]} 9. Qxe2 {[%emt 0:00:06]} Bxc5 {[%emt 0:01:05]} 10. O-O {[%emt 0:02:01]} O-O {[%emt 0:00:10]} 11. Rad1 {[%emt 0:02:09]} Bd6 {[%emt 0:02:19]} 12. Nxc6 {[%emt 0:01:21]} bxc6 {[%emt 0:00:31]} 13. Bxd6 {[%emt 0:01:06]} Qxd6 {[%emt 0:00:06]} 14. Na4 {[%emt 0:02:11]} Qb4 {[%emt 0:01:47]} 15. Rd4 {[%emt 0:00:30]} Qb5 {[%emt 0:00:06]} 16. Qxb5 {[%emt 0:00:36]} cxb5 {[%emt 0:00:55]} 17. Nc3 {[%emt 0:00:09]} Rc5 {[%emt 0:00:15]} 18. a4 {[%emt 0:00:43]} e5 {[%emt 0:03:47]} 19. Rb4 {[%emt 0:01:07]} bxa4 {[%emt 0:00:37]} 20. Rxa4 {[%emt 0:00:26]} Rb8 {[%emt 0:00:26]} 21. Rxa7 {[%emt 0:00:10]} d4 {[%emt 0:00:04]} 22. exd4 {[%emt 0:00:45]} exd4 {[%emt 0:00:05]} 23. Ne2 {[%emt 0:00:10]} Rxc2 {[%emt 0:00:04]} 24. Nxd4 {[%emt 0:00:04]} Rcxb2 {[%emt 0:00:06]} 25. h3 {[%emt 0:00:57]} g6 {[%emt 0:00:20]} 1/2-1/2

[Event "Nakhchivan Open 2024"]
[Site "Nakhchivan"]
[Date "2024.01.14"]
[Round "7.6"]
[White "Aliyev, Aykhan"]
[Black "Huseynli, Elvin"]
[Result "1-0"]
[ECO "B29"]
[WhiteElo "1962"]
[BlackElo "1495"]
[Annotator "TA"]
[PlyCount "71"]
[EventDate "2024.01.11"]
[EventType "swiss"]
[EventCountry "AZE"]
[SourceTitle "playchess.com"]
[Source "ChessBase"]
[SourceQuality "1"]
[TimeControl "5400+30"]

{[%evp 9,70,-3,-3,-5,0,0,13,8,20,14,41,45,40,33,19,6,37,30,46,41,64,52,88,77,89,93,133,128,132,131,141,127,137,59,426,444,960,936,909,792,952,925,2386,2317,29985,6147,29995,29996,29996,29993,29993,29994,29994,29994,29994,29995,29995,29996,29997,29998,29998,29999,29999]} 1. e4 {[%emt 0:00:50]} c5 {[%emt 0:00:34]} 2. Nf3 {[%emt 0:00:07]} Nf6 {[%emt 0:00:33]} 3. d3 {[%emt 0:03:24]} d5 {[%emt 0:04:25]} 4. e5 {[%emt 0:04:39]} Ng8 {[%emt 0:03:55]} 5. g3 {[%emt 0:00:50]} Nc6 {[%emt 0:01:13]} 6. h3 {[%emt 0:02:35] Against Bg4} g6 {[%emt 0:04:30]} 7. Bg2 {[%emt 0:00:39] OK} Bg7 {[%emt 0:02:17] OK} 8. Qe2 {[%emt 0:00:58] The position is equal.} e6 {[%emt 0:03:02]} 9. O-O {[%emt 0:00:14]} Qc7 {[%emt 0:03:12] Inaccurate} 10. Re1 {[%emt 0:01:00] OK} h6 {[%emt 0:05:20] OK} 11. Nbd2 {[%emt 0:01:40][%cal Bb1d2,Bd2f1,Bf1h2][%mdl 32] EV=21.13} Nge7 {[%emt 0:00:47]} 12. Nf1 {[%emt 0:00:19]} Rb8 {[%emt 0:07:33] Inaccurate} 13. a4 a6 {[%emt 0:01:20]} 14. N1h2 {[%emt 0:02:06] OK} Nf5 {[%emt 0:03:12]} 15. c3 {[%emt 0:02:05]} b5 {[%emt 0:01:24] Inaccurate} 16. axb5 {[%emt 0:01:19]} axb5 {[%emt 0:00:52]} 17. Ng4 {[%emt 0:00:47] Best (Easy)} Qe7 {[%emt 0:02:51] [#] Inhibits Nf6+. Inaccurate} 18. Nf6+ $1 {[%emt 0:02:49][%mdl 512]} Bxf6 {[%emt 0:13:07] OK} 19. exf6 {[%emt 0:02:09]} Qxf6 {[%emt 0:00:59]} 20. Bf4 {[%emt 0:00:35] Best (Easy)} Rb6 {[%emt 0:00:20] [#] Black is weak on the dark squares. OK} 21. Ra8 {[%emt 0:10:53] White is more active. Mistake (0.8)} ({White should try} 21. g4 $1 $16 {[%cal Rg4f5]} Nh4 22. Qe3) 21... Kd8 $2 {[%emt 0:01:12][%mdl 8192] This move loses the game for Black. Loses game (3.7)} ({Black should play} 21... O-O $14) 22. Ne5 $18 {[%emt 0:01:18] OK} Nfe7 {[%emt 0:07:57] Mistake (5.2)} (22... Qe7 $142 23. Nxc6+ Rxc6) 23. Qe3 {[%emt 0:11:42][%csl LRc5,LRh6] Best} d4 {[%emt 0:05:25]} 24. Nxc6+ {[%emt 0:00:36]} Nxc6 {[%emt 0:00:46]} 25. cxd4 {[%emt 0:01:13]} cxd4 {[%emt 0:03:22]} 26. Qc1 {[%emt 0:00:16][%cal Oc1c5] Intending Qc5! and mate.} e5 {[%emt 0:05:04] [#]} 27. Bxe5 $1 {[%emt 0:00:50][%mdl 512]} Nxe5 {[%emt 0:01:13]} (27... Qe7 28. Bxc6) 28. Qxc8+ {[%emt 0:00:34] White mates.} Ke7 {[%emt 0:00:16][%cal Bd8e7,Be7e6,Be6f5,Bf5g5,Bg5h5][%mdl 32] EV=27.38. Goes to h5 (dbg))} 29. Qc7+ {[%emt 0:00:38]} Ke6 {[%emt 0:00:41]} 30. Qxb6+ {[%emt 0:00:04]} Kf5 {[%emt 0:00:11]} 31. Be4+ {[%emt 0:00:22]} Kg5 {[%emt 0:00:09]} 32. h4+ {[%emt 0:00:05]} Kh5 {[%emt 0:00:14]} 33. Qxf6 {[%emt 0:00:03]} Rxa8 {[%emt 0:00:35]} 34. Bf3+ {[%emt 0:00:03]} Ng4 {[%emt 0:00:29]} 35. Re5+ {[%emt 0:00:04]} g5 {[%emt 0:05:53]} 36. Qxf7# {[%emt 0:00:08] Weighted Error Value: White=0.07 (flawless) /Black=0.83.  Loses game:     	---       	Black=1      Mistake:       	White=1     	Black=1      Inaccurate:     	---       	Black=4      OK:         	White=4     	Black=4      Best:        	White=3     	---} 1-0

[Event "Nakhchivan Open 2024"]
[Site "Nakhchivan"]
[Date "2024.01.14"]
[Round "8.1"]
[White "Aliyev, Aykhan"]
[Black "Hasanzade, Toghrul"]
[Result "0-1"]
[ECO "B40"]
[WhiteElo "1962"]
[BlackElo "2329"]
[Annotator "ChessBase"]
[PlyCount "78"]
[EventDate "2024.01.11"]
[EventType "swiss"]
[EventCountry "AZE"]
[SourceTitle "playchess.com"]
[Source "ChessBase"]
[SourceQuality "1"]
[TimeControl "5400+30"]

1. e4 {[%emt 0:04:16]} c5 {[%emt 0:00:10]} 2. Nf3 {[%emt 0:00:07]} e6 {[%emt 0:00:05]} 3. d4 {[%emt 0:00:12]} cxd4 {[%emt 0:00:05]} 4. Nxd4 {[%emt 0:00:05]} Nf6 {[%emt 0:00:07]} 5. Bd3 {[%emt 0:00:11]} Nc6 {[%emt 0:00:06]} 6. Nxc6 {[%emt 0:00:08]} dxc6 {[%emt 0:00:03]} 7. O-O {[%emt 0:00:18]} e5 {[%emt 0:00:02]} 8. Nd2 {[%emt 0:01:03]} Bc5 {[%emt 0:02:28]} 9. Qf3 {[%emt 0:05:02]} O-O {[%emt 0:12:07]} 10. Nc4 {[%emt 0:04:27]} Re8 {[%emt 0:04:27]} 11. Be3 {[%emt 0:05:09]} Bxe3 {[%emt 0:07:49]} 12. Nxe3 {[%emt 0:01:46]} Qe7 {[%emt 0:01:50]} 13. Nf5 {[%emt 0:01:26]} Bxf5 {[%emt 0:09:40]} 14. Qxf5 {[%emt 0:00:12]} Qb4 {[%emt 0:00:08]} 15. Rab1 {[%emt 0:01:57]} Rad8 {[%emt 0:03:42]} 16. a3 {[%emt 0:02:18]} Qa4 {[%emt 0:08:14]} 17. Qf3 {[%emt 0:03:58]} Rd4 {[%emt 0:10:30]} 18. c3 {[%emt 0:06:43]} Rd6 {[%emt 0:01:01]} 19. Qe2 {[%emt 0:02:41]} Red8 {[%emt 0:07:35]} 20. Bc2 {[%emt 0:05:29]} Qa5 {[%emt 0:00:22]} 21. Rbd1 {[%emt 0:00:25]} g6 {[%emt 0:11:58]} 22. Rxd6 {[%emt 0:03:17]} Rxd6 {[%emt 0:00:15]} 23. Rd1 {[%emt 0:00:08]} Rxd1+ {[%emt 0:00:12]} 24. Qxd1 {[%emt 0:00:14]} Kg7 {[%emt 0:00:31]} 25. g3 {[%emt 0:06:50]} Qc5 {[%emt 0:02:15]} 26. Qd3 {[%emt 0:04:57]} a5 {[%emt 0:02:58]} 27. Kg2 {[%emt 0:03:18]} Qb6 {[%emt 0:01:30]} 28. b4 {[%emt 0:00:42]} c5 {[%emt 0:03:10]} 29. bxc5 {[%emt 0:03:04]} Qxc5 {[%emt 0:00:30]} 30. a4 {[%emt 0:01:49]} Ne8 {[%emt 0:02:20]} 31. Qd5 {[%emt 0:01:44]} Qxd5 {[%emt 0:01:11]} 32. exd5 {[%emt 0:00:09]} Kf6 {[%emt 0:00:06]} 33. c4 {[%emt 0:00:18]} b6 {[%emt 0:00:07]} 34. Kf3 {[%emt 0:00:16]} Ke7 {[%emt 0:01:56]} 35. Ke4 {[%emt 0:00:54]} Kd6 {[%emt 0:00:13]} 36. f4 {[%emt 0:00:29]} f5+ {[%emt 0:01:01]} 37. Kf3 {[%emt 0:00:14]} e4+ {[%emt 0:01:20]} 38. Ke3 {[%emt 0:00:09]} Kc5 {[%emt 0:00:04]} 39. Bb3 {[%emt 0:00:48]} Kb4 {[%emt 0:00:24]} 0-1

[Event "Nakhchivan Open 2024"]
[Site "Nakhchivan"]
[Date "2024.01.14"]
[Round "8.2"]
[White "Israilov, Agil"]
[Black "Ahmadov, Fariz"]
[Result "1/2-1/2"]
[ECO "C65"]
[WhiteElo "2114"]
[BlackElo "2193"]
[Annotator "TA"]
[PlyCount "36"]
[EventDate "2024.01.11"]
[EventType "swiss"]
[EventCountry "AZE"]
[SourceTitle "playchess.com"]
[Source "ChessBase"]
[SourceQuality "1"]
[TimeControl "5400+30"]

{[%evp 9,36,25,23,20,21,24,28,31,53,46,62,65,83,25,81,23,23,25,31,21,20,25,37,25,25,38,45,29,59]} 1. e4 {[%emt 0:00:02]} e5 {[%emt 0:00:05]} 2. Nf3 {[%emt 0:00:06]} Nc6 {[%emt 0:00:03]} 3. Bb5 {[%emt 0:00:05]} Nf6 {[%emt 0:00:32]} 4. d3 {[%emt 0:00:24]} d6 {[%emt 0:00:29]} 5. O-O {[%emt 0:00:12]} Be7 {[%emt 0:00:03]} 6. Re1 {[%emt 0:00:16]} O-O {[%emt 0:00:06]} 7. c3 {[%emt 0:00:24]} Bg4 {[%emt 0:02:48]} 8. h3 {[%emt 0:00:20]} Bd7 {[%emt 0:00:49]} 9. Nbd2 {[%emt 0:00:21][%cal Bb1d2,Bd2f1,Bf1e3,Be3g4][%mdl 32]} g6 {[%emt 0:01:30]} 10. Nf1 {[%emt 0:00:38]} Nh5 {[%emt 0:00:07]} 11. d4 {[%emt 0:01:25]} (11. Ne3 $16) 11... Bf6 {[%emt 0:03:41]} (11... Nxd4 $11 12. Nxd4 exd4 13. Bxd7 Qxd7) 12. dxe5 {[%emt 0:03:19]} (12. Bh6 $16) 12... Nxe5 $11 {[%emt 0:02:24]} 13. Bxd7 {[%emt 0:00:08]} Qxd7 {[%emt 0:01:48]} 14. Bh6 {[%emt 0:02:49]} Rfe8 {[%emt 0:02:20]} 15. Ne3 {[%emt 0:00:50]} c6 {[%emt 0:07:28]} 16. Nxe5 {[%emt 0:02:35]} Bxe5 {[%emt 0:02:17]} 17. Ng4 Qe6 18. Bg5 Kf8 {Weighted Error Value: White=0.13 (very precise) /Black=0.14 (very precise) .  Mistake:       	White=2     	Black=1      Inaccurate:     	---       	Black=1      OK:         	White=5     	---} 1/2-1/2

[Event "Nakhchivan Open 2024"]
[Site "Nakhchivan"]
[Date "2024.01.14"]
[Round "8.3"]
[White "Gasimov, Parviz"]
[Black "Seyidli, Mirsaleh"]
[Result "1-0"]
[ECO "B53"]
[WhiteElo "2362"]
[BlackElo "1775"]
[Annotator "RC"]
[PlyCount "87"]
[EventDate "2024.01.11"]
[EventType "swiss"]
[EventCountry "AZE"]
[SourceTitle "playchess.com"]
[Source "ChessBase"]
[SourceQuality "1"]
[TimeControl "5400+30"]

1. e4 {[%emt 0:00:07]} c5 {[%emt 0:01:05]} 2. Nf3 {[%emt 0:00:07]} d6 {[%emt 0:00:02]} 3. d4 {[%emt 0:00:27]} cxd4 {[%emt 0:00:06]} 4. Qxd4 {[%emt 0:01:51]} Nc6 {[%emt 0:00:08]} 5. Bb5 {[%emt 0:00:08]} Bd7 {[%emt 0:00:12]} 6. Qd3 {[%emt 0:00:47]} Nf6 {[%emt 0:00:08]} 7. c4 {[%emt 0:00:29]} a6 {[%emt 0:00:34]} 8. Bxc6 {[%emt 0:00:22]} Bxc6 {[%emt 0:00:05]} 9. Nc3 {[%emt 0:00:05]} g6 {[%emt 0:00:03]} 10. h3 {[%emt 0:01:19]} Bg7 {[%emt 0:00:07]} 11. Nd4 {[%emt 0:00:32]} O-O {[%emt 0:00:32]} 12. Be3 {[%emt 0:01:17]} Nd7 {[%emt 0:01:53]} 13. O-O {[%emt 0:00:56]} Nc5 {[%emt 0:00:42]} 14. Qc2 {[%emt 0:00:06]} Ne6 {[%emt 0:03:10]} 15. Rfd1 {[%emt 0:08:10]} Nxd4 {[%emt 0:00:17]} 16. Bxd4 {[%emt 0:00:04]} Bxd4 {[%emt 0:00:32]} 17. Rxd4 {[%emt 0:00:04]} Qb6 {[%emt 0:01:15]} 18. Rad1 {[%emt 0:02:03]} Rac8 {[%emt 0:00:03]} 19. Qe2 {[%emt 0:08:39]} a5 {[%emt 0:03:46]} 20. Nd5 {[%emt 0:16:09]} Bxd5 {[%emt 0:01:40]} 21. exd5 {[%emt 0:03:29]} Rfe8 {[%emt 0:01:13]} 22. Re4 {[%emt 0:00:29]} Rc7 {[%emt 0:01:24]} 23. Rd3 {[%emt 0:06:07]} Qc5 {[%emt 0:04:04]} 24. a4 {[%emt 0:07:40]} Qb4 {[%emt 0:09:29]} 25. b3 {[%emt 0:01:57]} Qc5 {[%emt 0:07:34]} 26. Rde3 {[%emt 0:08:34]} Kf8 {[%emt 0:05:42]} 27. Qb2 {[%emt 0:01:41]} Kg8 {[%emt 0:00:30]} 28. Qe2 {[%emt 0:00:13]} Kf8 {[%emt 0:00:16]} 29. Rf3 {[%emt 0:04:08]} Kg8 {[%emt 0:01:01]} 30. Rfe3 {[%emt 0:02:09]} Kf8 {[%emt 0:00:06]} 31. Qf3 {[%emt 0:05:44]} Kg7 {[%emt 0:02:16]} 32. Qf4 {[%emt 0:01:11]} Qa3 {[%emt 0:10:21]} 33. Rf3 {[%emt 0:01:30]} Rf8 {[%emt 0:01:15]} 34. Qd2 {[%emt 0:00:21]} Qc5 {[%emt 0:00:40]} 35. Rh4 {[%emt 0:00:42]} h5 {[%emt 0:02:53]} 36. Rxh5 {[%emt 0:01:21]} f6 {[%emt 0:01:10]} 37. Qh6+ {[%emt 0:01:03]} Kf7 {[%emt 0:00:02]} 38. Qh7+ {[%emt 0:00:08]} Ke8 {[%emt 0:00:03]} 39. Qxg6+ {[%emt 0:00:07]} Kd8 {[%emt 0:00:02]} 40. Qg7 {[%emt 0:01:54]} Re8 {[%emt 0:00:03]} 41. Rh8 {[%emt 0:01:54]} Rxh8 {[%emt 0:00:08]} 42. Qxh8+ {[%emt 0:00:04]} Kd7 {[%emt 0:00:02]} 43. Qg7 {[%emt 0:00:58]} Qa3 {[%emt 0:00:38]} 44. Re3 {[%emt 0:00:16]} 1-0